bitfinex/quotes_SOLUSD_20250802
["timestamp","ask_amount","ask_price","bid_price","bid_amount"]
[1754120025013,7.70304782,163.88,163.84,7.01304782]
[1754120025213,7.01304782,163.89,163.85,7.69304782]
[1754120025413,44.75,163.9,163.87,7.01304782]
[1754120025414,44.06,163.9,163.87,7.01304782]
[1754120025614,44.02,163.9,163.87,7.01304782]
[1754120025853,7.01304782,163.88,163.83,0.06]
[1754120026027,7.01304782,163.87,163.83,0.06]
[1754120026341,0.69,163.86,163.83,0.06]
[1754120026738,0.69,163.86,163.83,7.07304782]
[1754120026939,7.70304782,163.88,163.83,0.74]
[1754120027139,0.69,163.88,163.84,7.01304782]
[1754120027322,44.71,163.9,163.87,7.01304782]
[1754120027745,51.03304782,163.9,163.85,7.69304782]
[1754120028056,7.70304782,163.89,163.85,7.01304782]
[1754120028230,0.69,163.88,163.84,7.01304782]
[1754120028544,0.69,163.87,163.83,7.07304782]
[1754120028748,7.70304782,163.86,163.83,0.06]
[1754120028949,0.69,163.85,163.83,0.06]
[1754120030438,7.01304782,163.86,163.83,0.06]
[1754120030646,7.70304782,163.84,163.83,0.06]
[1754120030962,0.69,163.84,163.83,0.06]
[1754120031263,7.70304782,163.86,163.83,0.06]
[1754120031436,190.12,163.87,163.83,7.75304782]
[1754120031637,190.12,163.87,163.84,7.01304782]
[1754120031956,190.12,163.87,163.85,7.69304782]
[1754120032158,146.1,163.87,163.85,7.69304782]
[1754120032730,0.69,163.93,163.86,7.69304782]
[1754120033044,51.01304782,163.92,163.87,7.01304782]
[1754120033424,44.0,163.92,163.88,7.69304782]
[1754120034033,0.69,163.91,163.86,0.68]
[1754120034355,7.01304782,163.9,163.85,7.01304782]
[1754120034544,0.69,163.9,163.86,7.69304782]
[1754120034852,0.69,163.9,163.86,11.63908573]
[1754120035051,12.32908573,163.89,163.84,11.63908573]
[1754120035229,0.69,163.88,163.84,11.63908573]
[1754120035429,0.69,163.88,163.84,12.31908573]
[1754120035856,0.69,163.88,163.85,11.63908573]
[1754120036156,0.69,163.87,163.83,0.06]
[1754120036328,0.69,163.86,163.83,0.06]
[1754120037451,12.32908573,163.88,163.83,12.37908573]
[1754120037943,12.32908573,163.87,163.83,0.06]
[1754120038564,0.69,163.86,163.83,0.06]
[1754120039967,0.69,163.86,163.83,11.69908573]
[1754120040164,11.63908573,163.88,163.84,0.68]
[1754120040368,0.69,163.88,163.84,0.68]
[1754120040565,0.69,163.87,163.83,11.69908573]
[1754120040738,56.26908573,163.89,163.84,0.7]
[1754120040938,0.65,163.88,163.84,12.33908573]
[1754120041249,55.55908573,163.89,163.85,0.7]
[1754120041458,56.20908573,163.89,163.84,11.63908573]
[1754120041649,56.20908573,163.89,163.85,0.7]
[1754120041855,43.92,163.89,163.86,11.63908573]
[1754120042046,43.92,163.89,163.87,12.33908573]
[1754120042368,43.92,163.89,163.86,11.63908573]
[1754120042544,43.92,163.89,163.86,12.33908573]
[1754120042744,12.28908573,163.88,163.83,0.06]
[1754120042963,12.28908573,163.88,163.83,11.69908573]
[1754120043161,0.65,163.87,163.83,11.69908573]
[1754120043460,56.20908573,163.89,163.84,12.33908573]
[1754120043665,55.55908573,163.89,163.84,12.33908573]
[1754120043834,0.65,163.88,163.84,12.33908573]
[1754120044260,43.92,163.89,163.85,12.33908573]
[1754120044466,43.92,163.89,163.87,11.63908573]
[1754120044639,43.92,163.89,163.85,11.63908573]
[1754120044839,43.92,163.89,163.86,11.63908573]
[1754120045041,43.92,163.89,163.86,12.33908573]
[1754120046472,0.65,163.88,163.85,11.63908573]
[1754120047287,43.92,163.89,163.86,12.33908573]
[1754120047581,43.92,163.89,163.87,0.7]
[1754120047751,44.57,163.89,163.86,11.63908573]
[1754120047953,44.57,163.89,163.85,12.33908573]
[1754120048162,43.92,163.89,163.85,12.33908573]
[1754120048371,0.65,163.88,163.85,11.63908573]
[1754120048547,0.65,163.87,163.84,11.63908573]
[1754120048873,0.65,163.87,163.85,11.63908573]
[1754120049071,44.57,163.89,163.85,11.63908573]
[1754120049259,43.92,163.89,163.85,11.63908573]
[1754120049451,0.65,163.88,163.85,11.63908573]
[1754120050669,43.92,163.89,163.86,11.63908573]
[1754120050846,43.92,163.89,163.86,12.33908573]
[1754120051048,0.65,163.88,163.85,11.63908573]
[1754120051348,0.65,163.87,163.84,11.63908573]
[1754120051958,0.65,163.87,163.83,11.69908573]
[1754120052157,0.65,163.87,163.84,11.63908573]
[1754120052372,11.63908573,163.88,163.84,12.33908573]
[1754120052571,11.63908573,163.88,163.84,11.63908573]
[1754120052774,0.65,163.87,163.84,11.63908573]
[1754120052958,0.65,163.87,163.83,11.69908573]
[1754120053275,11.63908573,163.88,163.84,11.63908573]
[1754120053480,12.28908573,163.88,163.84,12.33908573]
[1754120053673,0.65,163.87,163.83,11.69908573]
[1754120053858,0.65,163.86,163.83,0.06]
[1754120054178,146.1,163.88,163.83,11.69908573]
[1754120054374,146.1,163.88,163.85,11.63908573]
[1754120054776,146.1,163.88,163.86,0.7]
[1754120055093,146.1,163.88,163.86,6.98446555]
[1754120055378,146.1,163.88,163.86,0.7]
[1754120055677,146.1,163.88,163.87,0.7]
[1754120055856,146.1,163.88,163.87,7.68446555]
[1754120056359,43.92,163.89,163.87,7.68446555]
[1754120056771,43.92,163.89,163.86,6.98446555]
[1754120056973,44.57,163.89,163.86,6.98446555]
[1754120057281,43.92,163.89,163.86,7.68446555]
[1754120057487,43.92,163.89,163.87,6.98446555]
[1754120057654,162.88468397,163.94,163.88,7.68446555]
[1754120057655,172.1,163.94,163.88,7.68446555]
[1754120057862,0.65,163.95,163.91,6.98446555]
[1754120058063,44.51,163.95,163.92,6.98446555]
[1754120058689,0.65,163.94,163.91,6.98446555]
[1754120058882,0.65,163.93,163.89,6.98446555]
[1754120059078,0.65,163.92,163.89,6.98446555]
[1754120060190,7.63446555,163.94,163.89,7.68446555]
[1754120060387,6.98446555,163.94,163.89,7.68446555]
[1754120060698,0.65,163.93,163.89,6.98446555]
[1754120060875,44.53,163.92,163.87,0.7]
[1754120061077,0.65,163.91,163.87,6.98446555]
[1754120061471,0.65,163.91,163.87,0.7]
[1754120061665,0.65,163.9,163.86,6.98446555]
[1754120061879,0.65,163.89,163.86,6.98446555]
[1754120062078,7.63446555,163.91,163.86,7.68446555]
[1754120062280,7.63446555,163.91,163.86,6.98446555]
[1754120062281,0.65,163.9,163.86,6.98446555]
[1754120062588,43.84,163.89,163.86,7.68446555]
[1754120062775,44.49,163.89,163.85,6.98446555]
[1754120062975,44.49,163.89,163.86,6.98446555]
[1754120064080,43.84,163.89,163.86,7.68446555]
[1754120064887,44.49,163.89,163.86,6.98446555]
[1754120065195,43.84,163.89,163.85,6.98446555]
[1754120065496,0.65,163.88,163.84,0.7]
[1754120065711,0.65,163.88,163.85,6.98446555]
[1754120065921,50.82446555,163.89,163.85,6.98446555]
[1754120065922,43.84,163.89,163.85,6.98446555]
[1754120066080,43.84,163.89,163.86,0.7]
[1754120066572,151.23531525,163.94,163.86,7.68446555]
[1754120066789,7.63446555,163.92,163.87,7.68446555]
[1754120066996,6.98446555,163.9,163.86,6.98446555]
[1754120067177,7.63446555,163.89,163.85,6.98446555]
[1754120067376,0.65,163.88,163.85,6.98446555]
[1754120068399,0.65,163.88,163.84,0.7]
[1754120068602,0.65,163.88,163.85,6.98446555]
[1754120068894,0.65,163.87,163.83,0.06]
[1754120069095,0.65,163.87,163.83,0.76]
[1754120069294,0.65,163.87,163.83,7.74446555]
[1754120069595,0.65,163.87,163.83,0.76]
[1754120069799,0.65,163.87,163.84,6.98446555]
[1754120069969,153.73446555,163.89,163.84,7.68446555]
[1754120070372,0.65,163.88,163.84,7.68446555]
[1754120070816,0.65,163.88,163.84,7.74446555]
[1754120070975,0.65,163.88,163.84,0.76]
[1754120071175,0.65,163.88,163.84,7.74446555]
[1754120071588,146.1,163.89,163.85,6.98446555]
[1754120071907,0.72,163.88,163.84,7.73446555]
[1754120072080,0.72,163.88,163.85,6.98446555]
[1754120072791,153.08446555,163.89,163.84,7.73446555]
[1754120072998,0.72,163.87,163.84,7.73446555]
[1754120073489,153.80446555,163.89,163.84,7.73446555]
[1754120073700,153.80446555,163.89,163.84,0.75]
[1754120073701,0.72,163.88,163.84,0.75]
[1754120073905,153.08446555,163.89,163.84,7.73446555]
[1754120074113,0.72,163.87,163.84,7.73446555]
[1754120074416,0.72,163.86,163.84,0.06]
[1754120075818,43.76,163.87,163.84,0.06]
[1754120075995,43.76,163.87,163.84,0.75]
[1754120076194,43.76,163.87,163.84,0.06]
[1754120076395,43.76,163.87,163.84,7.04446555]
[1754120076594,43.76,163.87,163.85,0.69]
[1754120077003,44.48,163.87,163.84,7.04446555]
[1754120077197,0.72,163.86,163.84,0.06]
[1754120079428,7.70446555,163.85,163.84,0.06]
[1754120079743,200.7071981,163.85,163.84,0.06]
[1754120080099,183.92251413,163.85,163.84,0.06]
[1754120080323,197.60446555,163.85,163.84,0.06]
[1754120080826,218.50531722,163.85,163.84,0.06]
[1754120081599,218.50400556,163.85,163.84,0.06]
[1754120082012,201.71932159,163.85,163.84,0.06]
[1754120082234,153.80446555,163.85,163.84,0.06]
[1754120082535,197.62446555,163.85,163.84,0.06]
[1754120082904,218.52314797,163.85,163.84,0.06]
[1754120083599,211.53868242,163.85,163.84,0.06]
[1754120083807,218.52314797,163.85,163.84,0.06]
[1754120084733,72.42314797,163.85,163.84,0.06]
[1754120087124,68.30914952,163.85,163.84,0.06]
[1754120088297,79.40312561,163.85,163.84,0.06]
[1754120088515,16.78468397,163.84,163.83,0.06]
[1754120088714,61.58380113,163.84,163.83,0.06]
[1754120088941,16.78468397,163.82,163.81,0.06]
[1754120089141,42.78468397,163.79,163.77,0.06]
[1754120089446,97.65933558,163.79,163.77,0.06]
[1754120089743,98.37933558,163.79,163.77,0.06]
[1754120092116,16.78468397,163.78,163.77,0.06]
[1754120092320,186.58691405,163.78,163.77,0.06]
[1754120092535,40.48691405,163.78,163.77,0.06]
[1754120093360,33.5024485,163.78,163.77,0.06]
[1754120093665,27.87933558,163.78,163.77,0.06]
[1754120093955,43.74,163.78,163.77,0.75]
[1754120094254,50.72446555,163.78,163.77,0.75]
[1754120094613,43.74,163.78,163.77,0.75]
[1754120100419,43.74,163.78,163.77,0.06]
[1754120100625,50.72446555,163.78,163.77,0.06]
[1754120100845,68.15914952,163.78,163.77,0.06]
[1754120101421,43.74,163.78,163.77,0.06]
[1754120101738,50.72446555,163.78,163.77,0.06]
[1754120102327,43.74,163.78,163.77,0.73]
[1754120102529,43.74,163.78,163.77,0.06]
[1754120102729,51.37446555,163.78,163.77,0.06]
[1754120102929,68.15914952,163.78,163.77,0.06]
[1754120103538,67.50914952,163.78,163.77,0.06]
[1754120103741,50.72446555,163.78,163.77,0.06]
[1754120103944,69.74,163.78,163.77,0.06]
[1754120104153,6.98446555,163.82,163.77,7.71446555]
[1754120104334,26.0,163.79,163.78,0.67]
[1754120104655,0.65,163.85,163.78,0.67]
[1754120104656,6.98446555,163.83,163.78,7.65446555]
[1754120104825,189.88,163.82,163.79,7.65446555]
[1754120105150,189.88,163.82,163.8,0.67]
[1754120105338,189.88,163.82,163.79,6.98446555]
[1754120105523,189.88,163.82,163.81,0.67]
[1754120106853,43.76,163.83,163.81,7.65446555]
[1754120107032,43.76,163.83,163.82,7.65446555]
[1754120107230,43.76,163.83,163.82,0.67]
[1754120108060,16.78468397,163.89,163.82,7.65446555]
[1754120108247,26.0,163.86,163.85,6.98446555]
[1754120108448,69.76,163.86,163.85,0.67]
[1754120109134,69.76,163.86,163.83,0.67]
[1754120109334,69.76,163.86,163.84,0.67]
[1754120110456,69.76,163.86,163.85,0.67]
[1754120110843,69.76,163.86,163.84,6.98446555]
[1754120111039,69.76,163.86,163.77,16.84468397]
[1754120111242,69.76,163.86,163.78,7.65446555]
[1754120111243,6.98446555,163.82,163.78,7.65446555]
[1754120111449,86.54468397,163.86,163.79,0.67]
[1754120111450,43.74,163.81,163.79,0.67]
[1754120111858,43.74,163.81,163.8,0.67]
[1754120112449,43.74,163.81,163.79,6.98446555]
[1754120112647,43.74,163.81,163.79,0.67]
[1754120112956,43.77,163.81,163.79,0.67]
[1754120113333,43.77,163.81,163.79,7.65446555]
[1754120113745,43.77,163.81,163.77,7.04446555]
[1754120113944,7.63446555,163.8,163.77,0.06]
[1754120114151,43.74,163.79,163.77,0.06]
[1754120114552,43.74,163.79,163.78,0.67]
[1754120115389,43.74,163.79,163.77,7.04446555]
[1754120115674,43.74,163.79,163.77,7.71446555]
[1754120116863,43.74,163.79,163.77,0.73]
[1754120117253,43.74,163.79,163.77,0.06]
[1754120118249,43.74,163.79,163.77,0.73]
[1754120118464,43.74,163.79,163.77,7.71446555]
[1754120118879,43.77,163.81,163.78,7.65446555]
[1754120119083,43.77,163.81,163.79,6.98446555]
[1754120119390,43.77,163.81,163.8,7.65446555]
[1754120119968,43.77,163.81,163.8,0.67]
[1754120120165,43.77,163.81,163.79,6.98446555]
[1754120120355,43.77,163.81,163.8,0.67]
[1754120120762,43.77,163.81,163.8,7.65446555]
[1754120121685,43.77,163.81,163.77,0.73]
[1754120122056,43.77,163.81,163.78,6.98446555]
[1754120122786,43.77,163.81,163.78,7.65446555]
[1754120123985,43.77,163.81,163.8,6.98446555]
[1754120124183,43.77,163.81,163.8,7.65446555]
[1754120124390,0.03,163.81,163.8,7.65446555]
[1754120129194,0.03,163.81,163.8,24.43914952]
[1754120129775,0.03,163.81,163.8,6.98446555]
[1754120133179,0.03,163.81,163.8,7.65446555]
[1754120134981,0.03,163.81,163.8,24.43914952]
[1754120137805,44.25,163.88,163.8,24.43914952]
[1754120137806,43.58,163.88,163.87,6.98446555]
[1754120138178,0.67,163.9,163.87,6.98446555]
[1754120138382,0.67,163.9,163.89,6.98446555]
[1754120138602,0.67,163.9,163.88,6.98446555]
[1754120139383,0.67,163.89,163.88,6.98446555]
[1754120140411,44.23,163.91,163.88,6.98446555]
[1754120140719,0.67,163.9,163.88,6.98446555]
[1754120140896,0.67,163.9,163.85,6.98446555]
[1754120140897,7.65446555,163.9,163.85,6.98446555]
[1754120141217,0.67,163.89,163.85,6.98446555]
[1754120141378,0.67,163.89,163.8,0.67]
[1754120141379,6.98446555,163.87,163.8,0.67]
[1754120141596,51.19446555,163.86,163.82,6.98446555]
[1754120141929,43.54,163.86,163.83,6.98446555]
[1754120142142,43.54,163.86,163.85,6.98446555]
[1754120142635,43.56,163.89,163.85,7.65446555]
[1754120142806,44.23,163.89,163.87,6.98446555]
[1754120143397,43.56,163.89,163.88,6.98446555]
[1754120146014,0.03,163.96,163.88,7.65446555]
[1754120146313,0.03,163.96,163.84,6.98446555]
[1754120146314,43.54,163.95,163.93,6.98446555]
[1754120147131,44.21,163.95,163.93,6.98446555]
[1754120147299,43.54,163.95,163.93,6.98446555]
[1754120147503,0.67,163.94,163.91,6.98446555]
[1754120147806,0.67,163.94,163.9,6.98446555]
[1754120148004,0.67,163.93,163.9,6.98446555]
[1754120148607,0.67,163.93,163.91,6.98446555]
[1754120151035,44.21,163.95,163.92,6.98446555]
[1754120151421,0.67,163.94,163.92,6.98446555]
[1754120152036,43.54,163.95,163.92,6.98446555]
[1754120152209,44.21,163.95,163.92,6.98446555]
[1754120152417,43.54,163.95,163.94,6.98446555]
[1754120152940,43.54,163.95,163.94,7.65446555]
[1754120153611,43.54,163.95,163.91,0.67]
[1754120153821,43.54,163.95,163.94,6.98446555]
[1754120155312,44.21,163.95,163.92,6.98446555]
[1754120155513,0.67,163.94,163.92,6.98446555]
[1754120156420,43.54,163.95,163.93,6.98446555]
[1754120156716,43.57,163.95,163.92,0.67]
[1754120156927,0.67,163.94,163.92,6.98446555]
[1754120157453,0.67,163.93,163.92,6.98446555]
[1754120158148,43.57,163.95,163.92,6.98446555]
[1754120158441,0.67,163.94,163.92,6.98446555]
[1754120159561,43.57,163.95,163.91,6.98446555]
[1754120159562,0.67,163.93,163.91,6.98446555]
[1754120159727,44.11,163.92,163.89,6.98446555]
[1754120160045,0.67,163.91,163.89,6.98446555]
[1754120160536,43.44,163.92,163.89,6.98446555]
[1754120160739,0.66,163.91,163.87,6.98446555]
[1754120161225,50.42446555,163.92,163.87,6.98446555]
[1754120161545,43.44,163.92,163.88,6.98446555]
[1754120161720,43.44,163.92,163.9,6.98446555]
[1754120162226,43.44,163.92,163.9,7.66446555]
[1754120162431,43.44,163.92,163.91,7.66446555]
[1754120162852,43.44,163.92,163.91,6.98446555]
[1754120164053,43.44,163.92,163.91,7.66446555]
[1754120165247,43.44,163.92,163.91,6.98446555]
[1754120166551,44.1,163.92,163.88,6.98446555]
[1754120166834,0.66,163.91,163.88,6.98446555]
[1754120167037,43.4,163.9,163.88,6.98446555]
[1754120167450,43.4,163.9,163.86,0.68]
[1754120167655,44.06,163.9,163.87,6.98446555]
[1754120167846,43.4,163.9,163.89,6.98446555]
[1754120168839,43.4,163.9,163.88,6.98446555]
[1754120169059,43.4,163.9,163.88,7.66446555]
[1754120169654,43.4,163.9,163.88,6.98446555]
[1754120171859,0.66,163.89,163.86,6.98446555]
[1754120172058,0.66,163.88,163.84,0.68]
[1754120172259,44.06,163.87,163.84,6.98446555]
[1754120172566,43.4,163.87,163.85,6.98446555]
[1754120173465,43.4,163.87,163.85,7.66446555]
[1754120173861,43.4,163.87,163.85,6.98446555]
[1754120174487,43.4,163.87,163.86,6.98446555]
[1754120174874,43.4,163.87,163.86,7.66446555]
[1754120175079,43.4,163.89,163.86,7.66446555]
[1754120175277,43.4,163.89,163.87,6.98446555]
[1754120175484,44.06,163.89,163.86,6.98446555]
[1754120175789,0.66,163.88,163.85,6.98446555]
[1754120175994,0.66,163.87,163.83,26.0]
[1754120176197,0.66,163.87,163.82,0.68]
[1754120176198,0.66,163.87,163.85,6.98446555]
[1754120177093,0.66,163.87,163.81,26.06]
[1754120177094,44.06,163.86,163.84,6.98446555]
[1754120177397,44.06,163.86,163.81,0.74]
[1754120177398,0.66,163.85,163.82,6.98446555]
[1754120177790,0.66,163.85,163.81,7.72446555]
[1754120177971,7.64446555,163.85,163.81,0.06]
[1754120178166,0.66,163.84,163.81,0.06]
[1754120178365,0.66,163.84,163.81,7.04446555]
[1754120178366,43.4,163.83,163.81,7.04446555]
[1754120178566,44.06,163.83,163.81,0.06]
[1754120181278,43.4,163.83,163.81,0.06]
[1754120181880,44.06,163.83,163.81,0.06]
[1754120183088,43.4,163.83,163.81,0.06]
[1754120183806,43.4,163.83,163.81,7.04446555]
[1754120184116,43.42,163.85,163.82,7.66446555]
[1754120184320,43.42,163.85,163.83,6.98446555]
[1754120184694,43.42,163.85,163.84,7.66446555]
[1754120186003,43.42,163.85,163.84,6.98446555]
[1754120188224,43.42,163.85,163.84,7.66446555]
[1754120188526,43.42,163.87,163.84,7.66446555]
[1754120188682,43.42,163.87,163.85,6.98446555]
[1754120189529,43.42,163.87,163.81,0.06]
[1754120189530,0.66,163.86,163.82,6.98446555]
[1754120189814,43.42,163.85,163.82,6.98446555]
[1754120190334,44.08,163.85,163.82,6.98446555]
[1754120190708,0.66,163.84,163.81,0.06]
[1754120191020,43.42,163.83,163.81,0.06]
[1754120191528,0.66,163.82,163.81,0.06]
[1754120192307,24.42914952,163.82,163.81,0.06]
[1754120192708,23.76914952,163.82,163.81,0.06]
[1754120192906,28.52674873,163.82,163.81,0.06]
[1754120193505,31.59295264,163.82,163.81,0.06]
[1754120193704,36.53638015,163.82,163.81,0.06]
[1754120196125,76.89017624,163.82,163.81,0.06]
[1754120196429,72.79257703,163.82,163.81,0.06]
[1754120197015,77.06446555,163.82,163.81,0.06]
[1754120198005,69.42,163.82,163.81,0.06]
[1754120198406,77.06446555,163.82,163.81,0.06]
[1754120199025,70.08,163.82,163.81,0.06]
[1754120199226,77.06446555,163.82,163.81,0.06]
[1754120202034,76.40446555,163.82,163.81,0.06]
[1754120202733,77.06446555,163.82,163.81,0.06]
[1754120203514,70.08,163.82,163.81,0.06]
[1754120203824,76.40446555,163.82,163.81,0.06]
[1754120204541,69.42,163.82,163.81,0.06]
[1754120205236,43.42,163.82,163.81,7.71446555]
[1754120206163,43.42,163.83,163.81,0.73]
[1754120206440,43.42,163.83,163.82,7.65446555]
[1754120206637,43.42,163.84,163.82,7.65446555]
[1754120206827,43.42,163.84,163.83,0.67]
[1754120207334,43.45,163.85,163.83,7.65446555]
[1754120207536,43.45,163.85,163.83,0.67]
[1754120207940,43.45,163.85,163.82,6.98446555]
[1754120208249,43.45,163.85,163.83,7.65446555]
[1754120208423,43.45,163.85,163.84,0.67]
[1754120208728,0.03,163.85,163.84,0.67]
[1754120208928,0.03,163.85,163.84,7.65446555]
[1754120209538,0.03,163.85,163.82,7.65446555]
[1754120210535,44.08,163.84,163.81,0.06]
[1754120211041,51.06446555,163.84,163.81,0.06]
[1754120211432,43.42,163.84,163.81,7.04446555]
[1754120211625,43.42,163.84,163.81,0.73]
[1754120213218,189.52,163.84,163.81,0.73]
[1754120213742,189.52,163.84,163.81,7.71446555]
[1754120213923,189.52,163.84,163.83,6.98446555]
[1754120214120,189.52,163.84,163.83,7.65446555]
[1754120214330,43.42,163.84,163.83,7.65446555]
[1754120214531,0.03,163.85,163.83,7.65446555]
[1754120214740,0.03,163.85,163.84,7.65446555]
[1754120215042,0.03,163.85,163.84,0.67]
[1754120216733,0.03,163.85,163.84,7.65446555]
[1754120216934,0.03,163.85,163.84,0.67]
[1754120217133,0.03,163.85,163.84,7.65446555]
[1754120218031,0.03,163.85,163.84,6.98446555]
[1754120218622,0.03,163.85,163.83,6.98446555]
[1754120220041,0.03,163.85,163.84,7.65446555]
[1754120221546,0.03,163.85,163.84,0.67]
[1754120221750,0.03,163.85,163.84,7.65446555]
[1754120223245,0.03,163.85,163.82,7.63446555]
[1754120223544,0.03,163.85,163.81,0.06]
[1754120223545,0.03,163.85,163.83,7.63446555]
[1754120223719,0.03,163.85,163.84,0.65]
[1754120224346,0.03,163.85,163.83,6.98446555]
[1754120224548,0.7,163.85,163.81,7.04446555]
[1754120224853,44.07,163.84,163.81,0.06]
[1754120226148,0.03,163.85,163.82,7.63446555]
[1754120226330,43.43,163.85,163.82,6.98446555]
[1754120226640,44.1,163.85,163.82,6.98446555]
[1754120226845,44.1,163.85,163.81,7.04446555]
[1754120227051,44.1,163.85,163.81,7.69446555]
[1754120227351,43.43,163.85,163.82,7.63446555]
[1754120227525,43.43,163.85,163.83,7.63446555]
[1754120227864,44.1,163.85,163.81,7.69446555]
[1754120228224,0.7,163.85,163.81,7.69446555]
[1754120228425,0.67,163.84,163.81,7.04446555]
[1754120228626,0.67,163.83,163.81,7.04446555]
[1754120229054,44.07,163.83,163.81,0.06]
[1754120229527,44.07,163.83,163.81,7.04446555]
[1754120230258,7.65446555,163.82,163.81,0.06]
[1754120230641,11.75857107,163.82,163.81,0.06]
[1754120231652,7.65446555,163.82,163.81,0.06]
[1754120231862,11.75835381,163.82,163.81,0.06]
[1754120232172,11.75832775,163.82,163.81,0.06]
[1754120232463,11.75834153,163.82,163.81,0.06]
[1754120233266,11.08834153,163.82,163.81,0.06]
[1754120233433,43.4,163.82,163.81,0.06]
[1754120233936,51.05446555,163.82,163.81,0.06]
[1754120234122,44.07,163.82,163.81,0.06]
[1754120234323,51.05446555,163.82,163.81,0.06]
[1754120234526,43.4,163.82,163.81,0.06]
[1754120234761,0.03,163.85,163.81,7.69446555]
[1754120234935,43.4,163.84,163.82,7.63446555]
[1754120235242,43.4,163.84,163.81,0.06]
[1754120235243,43.4,163.84,163.81,7.04446555]
[1754120235551,0.67,163.83,163.81,0.06]
[1754120235749,43.4,163.82,163.81,0.06]
[1754120235959,44.07,163.82,163.81,0.06]
[1754120236337,43.4,163.82,163.81,0.06]
[1754120237055,43.4,163.82,163.81,0.71]
[1754120237253,7.68446555,163.85,163.81,0.06]
[1754120237426,43.4,163.84,163.81,0.71]
[1754120237850,43.4,163.84,163.82,0.65]
[1754120238058,43.4,163.83,163.81,0.06]
[1754120238637,43.4,163.83,163.82,0.65]
[1754120239462,43.4,163.83,163.81,0.06]
[1754120240263,43.4,163.83,163.81,0.71]
[1754120241170,43.4,163.83,163.81,0.06]
[1754120241638,43.4,163.83,163.81,14.14910767]
[1754120242040,146.1,163.84,163.81,14.14910767]
[1754120242283,0.03,163.85,163.83,13.43910767]
[1754120242444,0.03,163.85,163.84,13.43910767]
[1754120242770,0.03,163.85,163.84,14.08910767]
[1754120247350,0.03,163.85,163.84,40.08910767]
[1754120249146,0.03,163.85,163.84,26.0]
[1754120249364,0.7,163.85,163.81,26.71]
[1754120249649,0.03,163.85,163.82,0.65]
[1754120249875,0.03,163.85,163.84,13.43910767]
[1754120250377,0.7,163.85,163.84,13.43910767]
[1754120251055,0.7,163.85,163.83,13.43910767]
[1754120251254,0.7,163.85,163.82,13.43910767]
[1754120251457,0.7,163.85,163.83,13.43910767]
[1754120252148,0.7,163.85,163.81,0.06]
[1754120252149,0.03,163.85,163.82,13.43910767]
[1754120252375,0.66,163.84,163.82,13.43910767]
[1754120254666,0.03,163.85,163.82,13.43910767]
[1754120254877,0.03,163.85,163.82,14.12910767]
[1754120255277,0.69,163.85,163.82,13.43910767]
[1754120255975,0.69,163.85,163.81,0.06]
[1754120255976,0.66,163.84,163.81,13.49910767]
[1754120257073,0.66,163.84,163.81,14.18910767]
[1754120257376,0.03,163.85,163.81,13.49910767]
[1754120257555,0.66,163.84,163.81,13.49910767]
[1754120257758,0.66,163.83,163.81,0.06]
[1754120258773,154.85368692,163.85,163.81,0.06]